fUSD/lending_fUSD_20260525
["ID","MTS","AMOUNT","RATE_DAILY","PERIOD"]
[422991437,1779723036000,-500.0,0.00013698,2]
[422991431,1779723036000,-1280.29,0.00013698,2]
[422991430,1779723036000,-1280.29,0.00013698,2]
[422991440,1779723036000,-1589.0,0.0001372,2]
[422991443,1779723036000,-2316.0,0.0001372,2]
[422991439,1779723036000,-166.66,0.00013699,2]
[422991441,1779723036000,-1589.0,0.0001372,2]
[422991442,1779723036000,-1589.0,0.0001372,2]
[422991450,1779723036000,-823.0,0.00013893,2]
[422991444,1779723036000,-3499.35940887,0.00013721,2]
[422991449,1779723036000,-642.73,0.00013889,2]
[422991477,1779723036000,-500.0,0.00014,2]
[422991478,1779723036000,-500.0,0.00014,2]
[422991434,1779723036000,-1280.29,0.00013698,2]
[422991480,1779723036000,-500.0,0.00014,2]
[422991504,1779723036000,-574.88,0.00014,2]
[422991516,1779723036000,-500.0,0.00014,2]
[422991513,1779723036000,-500.0,0.00014,2]
[422991514,1779723036000,-500.0,0.00014,2]
[422991518,1779723036000,-500.0,0.00014,2]
[422991517,1779723036000,-500.0,0.00014,2]
[422991520,1779723036000,-500.0,0.00014,2]
[422991519,1779723036000,-500.0,0.00014,2]
[422991515,1779723036000,-500.0,0.00014,2]
[422991521,1779723036000,-500.0,0.00014,2]
[422991522,1779723036000,-500.0,0.00014,2]
[422991523,1779723036000,-500.0,0.00014,2]
[422991510,1779723036000,-500.0,0.00014,2]
[422991528,1779723036000,-500.0,0.00014,2]
[422991525,1779723036000,-500.0,0.00014,2]
[422991526,1779723036000,-500.0,0.00014,2]
[422991524,1779723036000,-500.0,0.00014,2]
[422991530,1779723036000,-500.0,0.00014,2]
[422991531,1779723036000,-500.0,0.00014,2]
[422991532,1779723036000,-500.0,0.00014,2]
[422991534,1779723036000,-500.0,0.00014,2]
[422991535,1779723036000,-500.0,0.00014,2]
[422991536,1779723036000,-500.0,0.00014,2]
[422991537,1779723036000,-500.0,0.00014,2]
[422991533,1779723036000,-500.0,0.00014,2]
[422991481,1779723036000,-500.0,0.00014,2]
[422991529,1779723036000,-500.0,0.00014,2]
[422991511,1779723036000,-500.0,0.00014,2]
[422991527,1779723036000,-500.0,0.00014,2]
[422991506,1779723036000,-500.0,0.00014,2]
[422991508,1779723036000,-500.0,0.00014,2]
[422991479,1779723036000,-500.0,0.00014,2]
[422991482,1779723036000,-500.0,0.00014,2]
[422991486,1779723036000,-500.0,0.00014,2]
[422991484,1779723036000,-500.0,0.00014,2]
[422991483,1779723036000,-500.0,0.00014,2]
[422991485,1779723036000,-500.0,0.00014,2]
[422991494,1779723036000,-500.0,0.00014,2]
[422991498,1779723036000,-500.0,0.00014,2]
[422991496,1779723036000,-500.0,0.00014,2]
[422991491,1779723036000,-500.0,0.00014,2]
[422991497,1779723036000,-500.0,0.00014,2]
[422991495,1779723036000,-500.0,0.00014,2]
[422991488,1779723036000,-500.0,0.00014,2]
[422991499,1779723036000,-500.0,0.00014,2]
[422991505,1779723036000,-487.93,0.00014,2]
[422991487,1779723036000,-500.0,0.00014,2]
[422991512,1779723036000,-500.0,0.00014,2]
[422991507,1779723036000,-500.0,0.00014,2]
[422991509,1779723036000,-500.0,0.00014,2]
[422991501,1779723036000,-500.0,0.00014,2]
[422991503,1779723036000,-500.0,0.00014,2]
[422991502,1779723036000,-500.0,0.00014,2]
[422991500,1779723036000,-500.0,0.00014,2]
[422991493,1779723036000,-500.0,0.00014,2]
[422991492,1779723036000,-500.0,0.00014,2]
[422991489,1779723036000,-500.0,0.00014,2]
[422991490,1779723036000,-500.0,0.00014,2]
[422991568,1779723037000,-1589.0,0.0001436,2]
[422991567,1779723037000,-2316.0,0.0001436,2]
[422991559,1779723037000,-165.908,0.000143,2]
[422991562,1779723037000,-500.0,0.00014359,2]
[422991557,1779723037000,-150.0,0.00014237,2]
[422991560,1779723037000,-3188.161,0.000143,2]
[422991566,1779723037000,-2316.0,0.0001436,2]
[422991569,1779723037000,-1589.0,0.0001436,2]
[422991563,1779723037000,-1589.0,0.0001436,2]
[422991565,1779723037000,-1589.0,0.0001436,2]
[422991580,1779723037000,-1589.0,0.0001468,2]
[422991570,1779723037000,-500.0,0.00014374,2]
[422991571,1779723037000,-166.66,0.00014384,2]
[422991561,1779723037000,-3499.35940887,0.0001431,2]
[422991572,1779723037000,-2100.0,0.000144,5]
[422991564,1779723037000,-1589.0,0.0001436,2]
[422991558,1779723037000,-166.66,0.00014247,2]
[422991539,1779723037000,-500.0,0.00014,2]
[422991554,1779723037000,-2503.0,0.000142,2]
[422991574,1779723037000,-400.0,0.000145,5]
[422991538,1779723037000,-199.23,0.00014,2]
[422991541,1779723037000,-250.0,0.00014,2]
[422991543,1779723037000,-2316.0,0.0001404,2]
[422991542,1779723037000,-2316.0,0.0001404,2]
[422991545,1779723037000,-2316.0,0.0001404,2]
[422991555,1779723037000,-150.0,0.00014237,2]
[422991556,1779723037000,-150.0,0.00014237,2]
[422991544,1779723037000,-2316.0,0.0001404,2]
[422991547,1779723037000,-166.66,0.0001411,2]
[422991548,1779723037000,-1271.0,0.00014161,2]
[422991549,1779723037000,-519.0,0.00014161,2]
[422991550,1779723037000,-1224.0,0.00014161,2]
[422991551,1779723037000,-3547.0,0.00014161,2]
[422991553,1779723037000,-661.38170655,0.00014169,2]
[422991552,1779723037000,-626.0,0.00014161,2]
[422991546,1779723037000,-163.0,0.0001404,2]
[422991576,1779723037000,-1681.25,0.00014538,2]
[422991540,1779723037000,-500.0,0.00014,2]
[422991573,1779723037000,-150.0,0.00014487,2]
[422991603,1779723037000,-433.0,0.0001491,2]
[422991601,1779723037000,-867.0,0.000149,5]
[422991602,1779723037000,-3499.35940887,0.000149,2]
[422991598,1779723037000,-3119.4148,0.000149,2]
[422991599,1779723037000,-197.72717822,0.000149,2]
[422991604,1779723037000,-150.0,0.00014924,2]
[422991607,1779723037000,-477.0,0.00014969,2]
[422991597,1779723037000,-12031.67218127,0.000149,3]
[422991608,1779723037000,-500.0,0.00014974,2]
[422991605,1779723037000,-488.81359689,0.00014939,2]
[422991613,1779723037000,-559.16374201,0.00014975,2]
[422991612,1779723037000,-49586.04456521,0.00014975,2]
[422991610,1779723037000,-500.0,0.00014974,2]
[422991606,1779723037000,-433.0,0.00014939,2]
[422991611,1779723037000,-23330.5074736,0.00014975,2]
[422991577,1779723037000,-2008.0,0.000146,2]
[422991609,1779723037000,-1280.29,0.00014974,2]
[422991595,1779723037000,-200.0,0.0001488,2]
[422991600,1779723037000,-538.0,0.000149,5]
[422991593,1779723037000,-1573.83167,0.0001485,2]
[422991575,1779723037000,-234.56,0.00014538,2]
[422991579,1779723037000,-1589.0,0.0001468,2]
[422991578,1779723037000,-400.0,0.000146,5]
[422991582,1779723037000,-2387.72938221,0.000147,2]
[422991581,1779723037000,-163.0,0.0001468,2]
[422991583,1779723037000,-400.0,0.000147,5]
[422991596,1779723037000,-664.0,0.000149,5]
[422991592,1779723037000,-1573.83167,0.0001485,2]
[422991584,1779723037000,-1300.0,0.00014726,2]
[422991587,1779723037000,-2000.0,0.000148,2]
[422991590,1779723037000,-433.0,0.00014821,2]
[422991591,1779723037000,-336.80736356,0.0001485,2]
[422991589,1779723037000,-477.0,0.00014807,2]
[422991586,1779723037000,-150.0,0.00014737,2]
[422991588,1779723037000,-400.0,0.000148,5]
[422991594,1779723037000,-1573.83167,0.0001486,2]
[422991585,1779723037000,-700.0,0.00014726,2]
[422991626,1779723038000,-1333.69172397,0.00014074,2]
[422991623,1779723038000,-491.12033772,0.00014074,2]
[422991622,1779723038000,-208.87966228,0.00010888,2]
[422991625,1779723038000,-317.0,0.00014074,2]
[422991624,1779723038000,-645.31994166,0.00014074,2]
[422991628,1779723038000,-77004.92656946,0.00014975,2]
[422991633,1779723038000,-5537.2165829,0.00014975,2]
[422991630,1779723038000,-20802.61131796,0.00014975,2]
[422991629,1779723038000,-342.72076356,0.00014975,2]
[422991632,1779723038000,-728.7863525,0.00014975,2]
[422991631,1779723038000,-7538.7350287,0.00014975,2]
[422991634,1779723038000,-78700.9938218,0.00014975,2]
[422991627,1779723038000,-661.38170655,0.00014352,2]
[422991651,1779723039000,-458.17,0.00014999,2]
[422991653,1779723039000,-500.0,0.00014999,2]
[422991661,1779723039000,-500.0,0.00014999,2]
[422991657,1779723039000,-500.0,0.00014999,2]
[422991659,1779723039000,-500.0,0.00014999,2]
[422991665,1779723039000,-500.0,0.00014999,2]
[422991655,1779723039000,-500.0,0.00014999,2]
[422991677,1779723039000,-1280.29,0.00014999,2]
[422991669,1779723039000,-1280.29,0.00014999,2]
[422991663,1779723039000,-500.0,0.00014999,2]
[422991649,1779723039000,-500.0,0.00014999,2]
[422991646,1779723039000,-500.0,0.00014999,2]
[422991645,1779723039000,-500.0,0.00014999,2]
[422991644,1779723039000,-500.0,0.00014999,2]
[422991639,1779723039000,-3918.29176,0.00014989,2]
[422991638,1779723039000,-17560.5653553,0.00014987,2]
[422991637,1779723039000,-181.82792574,0.00014986,2]
[422991641,1779723039000,-151.0,0.00014997,2]
[422991636,1779723039000,-150.0,0.00014986,2]
[422991635,1779723039000,-150.0,0.00014986,2]
[422991640,1779723039000,-203.75929726,0.0001499,2]
[422991643,1779723039000,-500.0,0.00014999,2]
[422991642,1779723039000,-151.0,0.00014997,2]
[422991681,1779723039000,-1280.29,0.00014999,2]
[422991647,1779723039000,-500.0,0.00014999,2]
[422991675,1779723039000,-1280.29,0.00014999,2]
[422991667,1779723039000,-384.32,0.00014999,2]
[422991679,1779723039000,-1280.29,0.00014999,2]
[422991671,1779723039000,-1280.29,0.00014999,2]
[422991722,1779723039000,-1207599.6577492,0.00015,2]
[422991720,1779723039000,-500.0,0.00014999,2]
[422991732,1779723039000,-4157.5475158,0.00015,2]
[422991728,1779723039000,-614.0,0.00015,2]
[422991716,1779723039000,-500.0,0.00014999,2]
[422991709,1779723039000,-500.0,0.00014999,2]
[422991707,1779723039000,-500.0,0.00014999,2]
[422991705,1779723039000,-500.0,0.00014999,2]
[422991703,1779723039000,-500.0,0.00014999,2]
[422991692,1779723039000,-1280.29,0.00014999,2]
[422991713,1779723039000,-500.0,0.00014999,2]
[422991718,1779723039000,-500.0,0.00014999,2]
[422991711,1779723039000,-500.0,0.00014999,2]
[422991701,1779723039000,-500.0,0.00014999,2]
[422991699,1779723039000,-500.0,0.00014999,2]
[422991698,1779723039000,-500.0,0.00014999,2]
[422991696,1779723039000,-500.0,0.00014999,2]
[422991694,1779723039000,-1280.31,0.00014999,2]
[422991690,1779723039000,-1280.29,0.00014999,2]
[422991686,1779723039000,-1280.29,0.00014999,2]
[422991673,1779723039000,-1280.29,0.00014999,2]
[422991685,1779723039000,-1280.29,0.00014999,2]
[422991688,1779723039000,-1280.29,0.00014999,2]
[422991683,1779723039000,-1280.29,0.00014999,2]
[422991714,1779723039000,-500.0,0.00014999,2]
[422991913,1779723040000,-661.38170655,0.00014535,2]
[422991915,1779723040000,-1591.81958814,0.000147,2]
[422991917,1779723040000,-122704.00386148,0.00015,2]
[422991911,1779723040000,-2787.13200335,0.00014487,2]
[422991926,1779723040000,-166677.3580791,0.00015,2]
[422991924,1779723040000,-2263039.68050147,0.00015,2]
[422991922,1779723040000,-18302.4239004,0.00015,2]
[422991970,1779723041000,-92755.77173928,0.00015,2]
[422991973,1779723041000,-1168.8896084,0.00015,2]
[422991968,1779723041000,-11077.48796778,0.00015,2]
[422991965,1779723041000,-1711.902861,0.00015,2]
[422991961,1779723041000,-6230.76818271,0.00015,2]
[422991963,1779723041000,-265.1286,0.00015,2]
[422991952,1779723041000,-1164.76458018,0.00015,2]
[422992264,1779723044000,-645.28848998,0.000147,2]
[422992279,1779723044000,-415.92456878,0.000147,2]
[422992295,1779723044000,-403.73204355,0.00015,2]
[422992292,1779723044000,-7839.97237987,0.00015,2]
[422992297,1779723044000,-325.58015431,0.00015,2]
[422992283,1779723044000,-426.37712824,0.000149,2]
[422992288,1779723044000,-1818.91808824,0.00015,2]
[422992316,1779723044000,-5783.2536292,0.00015,2]
[422992304,1779723044000,-1071.18168082,0.00015,2]
[422992301,1779723044000,-339.72,0.00015,2]
[422992281,1779723044000,-2940.35239023,0.000149,2]
[422992285,1779723044000,-26988.44709275,0.00015,2]
[422992651,1779723046000,-796.38415171,0.00015,2]
[422992641,1779723046000,-362.424535,0.00015,2]
[422992648,1779723046000,-1626.85565591,0.00015,2]
[422992637,1779723046000,-1510.54035281,0.00015,2]
[422992631,1779723046000,-599.11823676,0.00014717,2]
[422992629,1779723046000,-382.32176324,0.000147,2]
[422992633,1779723046000,-62.26346979,0.00014717,2]
[422992622,1779723046000,-463.7951322,0.000147,2]
[422992620,1779723046000,-6061.0,0.00014284,2]
[422992635,1779723046000,-2787.13200335,0.000149,2]
[422992717,1779723047000,-5719.23637446,0.00015,2]
[422992714,1779723047000,-2965.85244379,0.00015,2]
[422992984,1779723255000,744.817,0.00028082,120]
[422992987,1779723390000,155.1,0.00028082,120]
[422992991,1779723492000,195.99,0.00028082,120]
[422992992,1779723625000,814.98673151,0.0002808,120]
[422992997,1779723780000,220.16,6.519e-05,2]
[422992998,1779723833000,798.92969037,0.0002,120]
[422993004,1779724140000,1000.0,0.00028081,120]
[422993026,1779724231000,-9914.32,0.00013356,2]
[422993025,1779724231000,-1200.0,0.00013356,2]
[422993020,1779724231000,-1040.65,0.00012964,2]
[422993018,1779724231000,-315.94217954,0.0001291,2]
[422993028,1779724231000,-999.99,0.00013356,2]
[422993015,1779724231000,-303.5,0.00012822,2]
[422993017,1779724231000,-150.0,0.00012834,2]
[422993013,1779724231000,-190.66422647,0.00012809,2]
[422993014,1779724231000,-298.1805098,0.00012822,2]
[422993012,1779724231000,-250.0,0.00012807,2]
[422993011,1779724231000,-261.46,0.00012805,2]
[422993016,1779724231000,-1389.8194902,0.00012822,2]
[422993022,1779724231000,-1200.0,0.00013354,2]
[422993019,1779724231000,-161.82,0.00012946,2]
[422993027,1779724231000,-150.99,0.00013356,2]
[422993033,1779724231000,-160.0,0.00013402,2]
[422993032,1779724231000,-215.38528485,0.00013402,2]
[422993036,1779724231000,-150.0,0.00013488,2]
[422993035,1779724231000,-11034.36085202,0.00013456,2]
[422993034,1779724231000,-208.87966228,0.00013402,2]
[422993039,1779724231000,-150.0,0.00013488,2]
[422993024,1779724231000,-600.0,0.00013356,2]
[422993038,1779724231000,-150.00000001,0.00013488,2]
[422993031,1779724231000,-520.92,0.00013356,2]
[422993029,1779724231000,-9999.99,0.00013356,2]
[422993023,1779724231000,-500.0,0.00013356,2]
[422993021,1779724231000,-155.74,0.00013087,2]
[422993030,1779724231000,-365.52,0.00013356,2]
[422993046,1779724232000,-7271.51601642,0.00013634,2]
[422993047,1779724232000,-500.0,0.00013698,2]
[422993048,1779724232000,-500.0,0.00013698,2]
[422993054,1779724232000,-500.0,0.00013698,2]
[422993051,1779724232000,-500.0,0.00013698,2]
[422993043,1779724232000,-2340.0,0.00013521,2]
[422993044,1779724232000,-150.0,0.00013628,2]
[422993053,1779724232000,-510.74292638,0.00013698,2]
[422993042,1779724232000,-150.0,0.00013488,2]
[422993041,1779724232000,-150.0,0.00013488,2]
[422993040,1779724232000,-150.0,0.00013488,2]
[422993055,1779724232000,-500.0,0.00013698,2]
[422993045,1779724232000,-166.92,0.00013629,2]
[422993057,1779724232000,-500.0,0.00013698,2]
[422993049,1779724232000,-500.0,0.00013698,2]
[422993059,1779724232000,-500.0,0.00013698,2]
[422993056,1779724232000,-500.0,0.00013698,2]
[422993077,1779724232000,-6090.6053,0.000137,2]
[422993081,1779724232000,-474.0,0.0001372,2]
[422993085,1779724232000,-7907.59458617,0.000138,2]
[422993074,1779724232000,-166.66,0.00013699,2]
[422993072,1779724232000,-200.0,0.00013699,2]
[422993083,1779724232000,-159.54,0.00013797,2]
[422993068,1779724232000,-500.0,0.00013698,2]
[422993079,1779724232000,-2316.0,0.0001372,2]
[422993066,1779724232000,-578.19370214,0.00013698,2]
[422993070,1779724232000,-2500.0,0.00013699,2]
[422993064,1779724232000,-500.0,0.00013698,2]
[422993062,1779724232000,-500.0,0.00013698,2]
[422993060,1779724232000,-500.0,0.00013698,2]
[422993058,1779724232000,-633.9,0.00013698,2]
[422993120,1779724237000,-1199.89,0.000138,2]
[422993121,1779724237000,-1258.67211886,0.000138,2]
[422993123,1779724237000,-261.5289737,0.000138,2]
[422993122,1779724237000,-286.399996,0.000138,2]
[422993119,1779724237000,-1381.88065857,0.000138,2]
[422993176,1779724240000,-931.0,0.00014284,2]
[422993177,1779724240000,-418.0,0.00014284,2]
[422993181,1779724240000,-500.0,0.00014359,2]
[422993172,1779724240000,-626.0,0.00014284,2]
[422993182,1779724240000,-500.0,0.00014359,2]
[422993180,1779724240000,-8295.93424499,0.00014321,2]
[422993174,1779724240000,-519.0,0.00014284,2]
[422993183,1779724240000,-534.25855286,0.00014359,2]
[422993184,1779724240000,-500.0,0.00014359,2]
[422993190,1779724240000,-500.0,0.00014359,2]
[422993194,1779724240000,-2000.0,0.000144,2]
[422993187,1779724240000,-500.0,0.00014359,2]
[422993186,1779724240000,-500.0,0.00014359,2]
[422993185,1779724240000,-633.9,0.00014359,2]
[422993191,1779724240000,-1589.0,0.0001436,2]
[422993188,1779724240000,-500.0,0.00014359,2]
[422993193,1779724240000,-748.0906452,0.00014394,2]
[422993201,1779724240000,-529.97020776,0.00014496,2]
[422993192,1779724240000,-166.66,0.00014384,2]
[422993198,1779724240000,-748.0906452,0.00014496,2]
[422993203,1779724240000,-19844.95,0.00014497,2]
[422993171,1779724240000,-928.0,0.00014284,2]
[422993189,1779724240000,-500.0,0.00014359,2]
[422993173,1779724240000,-1355.0,0.00014284,2]
[422993149,1779724240000,-48390.27707717,0.000138,2]
[422993170,1779724240000,-3547.0,0.00014284,2]
[422993148,1779724240000,-289.85005636,0.00012707,2]
[422993196,1779724240000,-4448.9725417,0.00014479,2]
[422993151,1779724240000,-506.97999898,0.00013903,2]
[422993155,1779724240000,-714.0,0.0001404,2]
[422993154,1779724240000,-1589.0,0.0001404,2]
[422993152,1779724240000,-166.66,0.00013973,2]
[422993156,1779724240000,-1589.0,0.0001404,2]
[422993150,1779724240000,-166.66,0.00013836,2]
[422993153,1779724240000,-748.09064523,0.0001399,2]
[422993157,1779724240000,-2500.0,0.00014086,2]
[422993160,1779724240000,-1356.26780195,0.00014086,2]
[422993162,1779724240000,-302.4758158,0.0001409,2]
[422993158,1779724240000,-2500.0,0.00014086,2]
[422993167,1779724240000,-150.0,0.00014237,2]
[422993159,1779724240000,-250.0,0.00014086,2]
[422993163,1779724240000,-748.0906452,0.00014091,2]
[422993164,1779724240000,-166.66,0.0001411,2]
[422993166,1779724240000,-748.0906452,0.00014192,2]
[422993165,1779724240000,-2233.28796447,0.00014124,2]
[422993178,1779724240000,-748.0906452,0.00014293,2]
[422993179,1779724240000,-500.0,0.0001432,2]
[422993168,1779724240000,-166.66,0.00014247,2]
[422993169,1779724240000,-61743.32454566,0.0001425,2]
[422993175,1779724240000,-1271.0,0.00014284,2]
[422993197,1779724240000,-2500.0,0.00014491,2]
[422993161,1779724240000,-250.0,0.00014086,2]
[422993195,1779724240000,-1991.5,0.00014425,2]
[422993239,1779724240000,-500.0,0.00014676,2]
[422993230,1779724240000,-500.0,0.00014675,2]
[422993240,1779724240000,-175.02492224,0.00014676,2]
[422993241,1779724240000,-500.0,0.00014676,2]
[422993238,1779724240000,-500.0,0.00014676,2]
[422993237,1779724240000,-500.0,0.00014675,2]
[422993235,1779724240000,-500.0,0.00014675,2]
[422993234,1779724240000,-500.0,0.00014675,2]
[422993236,1779724240000,-500.0,0.00014675,2]
[422993253,1779724240000,-500.0,0.00014676,2]
[422993232,1779724240000,-500.0,0.00014675,2]
[422993254,1779724240000,-500.0,0.00014676,2]
[422993242,1779724240000,-362.67608648,0.00014676,2]
[422993245,1779724240000,-300.0,0.00014676,2]
[422993247,1779724240000,-500.0,0.00014676,2]
[422993248,1779724240000,-500.0,0.00014676,2]
[422993244,1779724240000,-300.0,0.00014676,2]
[422993249,1779724240000,-500.0,0.00014676,2]
[422993250,1779724240000,-500.0,0.00014676,2]
[422993251,1779724240000,-500.0,0.00014676,2]
[422993252,1779724240000,-500.0,0.00014676,2]
[422993255,1779724240000,-500.0,0.00014676,2]
[422993243,1779724240000,-210.44256736,0.00014676,2]
[422993233,1779724240000,-500.0,0.00014675,2]
[422993246,1779724240000,-248.86885667,0.00014676,2]
[422993223,1779724240000,-4448.97254163,0.00014659,2]
[422993228,1779724240000,-500.0,0.00014675,2]
[422993202,1779724240000,-892.17,0.00014497,2]
[422993200,1779724240000,-500.0,0.00014496,2]
[422993213,1779724240000,-2700.01539849,0.00014539,2]
[422993204,1779724240000,-160.0,0.00014504,2]
[422993215,1779724240000,-152.04529499,0.00014579,2]
[422993206,1779724240000,-164.264997,0.00014504,2]
[422993214,1779724240000,-5000.0,0.00014577,2]
[422993212,1779724240000,-4448.97254163,0.00014539,2]
[422993209,1779724240000,-360.964979,0.00014504,2]
[422993216,1779724240000,-4031.27775076,0.00014579,2]
[422993217,1779724240000,-473.83921814,0.00014581,2]
[422993199,1779724240000,-500.0,0.00014496,2]
[422993210,1779724240000,-2880.512,0.00014538,2]
[422993225,1779724240000,-500.0,0.00014675,2]
[422993208,1779724240000,-168.529995,0.00014504,2]
[422993226,1779724240000,-500.0,0.00014675,2]
[422993227,1779724240000,-246.15572631,0.00014675,2]
[422993219,1779724240000,-4448.97254163,0.00014599,2]
[422993222,1779724240000,-4031.27775074,0.0001465,2]
[422993220,1779724240000,-2000.0,0.000146,2]
[422993221,1779724240000,-4031.27775074,0.00014615,2]
[422993218,1779724240000,-748.0906452,0.00014597,2]
[422993211,1779724240000,-166.348,0.00014538,2]
[422993224,1779724240000,-223.16507989,0.00014667,2]
[422993280,1779724241000,-500.0,0.00014676,2]
[422993276,1779724241000,-500.0,0.00014676,2]
[422993273,1779724241000,-500.0,0.00014676,2]
[422993272,1779724241000,-466.01281634,0.00014676,2]
[422993278,1779724241000,-500.0,0.00014676,2]
[422993279,1779724241000,-500.0,0.00014676,2]
[422993287,1779724241000,-500.0,0.00014676,2]
[422993284,1779724241000,-500.0,0.00014676,2]
[422993285,1779724241000,-500.0,0.00014676,2]
[422993281,1779724241000,-500.0,0.00014676,2]
[422993274,1779724241000,-500.0,0.00014676,2]
[422993288,1779724241000,-500.0,0.00014676,2]
[422993290,1779724241000,-500.0,0.00014676,2]
[422993283,1779724241000,-500.0,0.00014676,2]
[422993282,1779724241000,-500.0,0.00014676,2]
[422993277,1779724241000,-500.0,0.00014676,2]
[422993266,1779724241000,-424.8,0.00014676,2]
[422993271,1779724241000,-500.0,0.00014676,2]
[422993289,1779724241000,-164.03595357,0.00014676,2]
[422993256,1779724241000,-251.89775455,0.00014676,2]
[422993257,1779724241000,-500.0,0.00014676,2]
[422993258,1779724241000,-500.0,0.00014676,2]
[422993264,1779724241000,-500.0,0.00014676,2]
[422993261,1779724241000,-500.0,0.00014676,2]
[422993275,1779724241000,-500.0,0.00014676,2]
[422993259,1779724241000,-500.0,0.00014676,2]
[422993263,1779724241000,-500.0,0.00014676,2]
[422993260,1779724241000,-500.0,0.00014676,2]
[422993267,1779724241000,-500.0,0.00014676,2]
[422993268,1779724241000,-500.0,0.00014676,2]
[422993269,1779724241000,-500.0,0.00014676,2]
[422993270,1779724241000,-500.0,0.00014676,2]
[422993265,1779724241000,-500.0,0.00014676,2]
[422993262,1779724241000,-500.0,0.00014676,2]
[422993292,1779724241000,-500.0,0.00014676,2]
[422993302,1779724241000,-4031.27775074,0.00014686,2]
[422993314,1779724241000,-4031.27775074,0.00014757,2]
[422993311,1779724241000,-1200.0,0.00014726,2]
[422993313,1779724241000,-255.0,0.00014745,2]
[422993309,1779724241000,-4031.27775074,0.00014722,2]
[422993312,1779724241000,-152.04529499,0.0001474,2]
[422993317,1779724241000,-4031.27775074,0.00014793,2]
[422993310,1779724241000,-600.0,0.00014726,2]
[422993320,1779724241000,-500.0,0.00014799,2]
[422993323,1779724241000,-387.35291425,0.000148,2]
[422993324,1779724241000,-133442.5459872,0.000148,2]
[422993325,1779724241000,-500.330635,0.000148,2]
[422993321,1779724241000,-300.0,0.00014799,2]
[422993318,1779724241000,-748.0906452,0.00014799,2]
[422993286,1779724241000,-500.0,0.00014676,2]
[422993322,1779724241000,-951551.08071164,0.000148,2]
[422993307,1779724241000,-8033.57413947,0.000147,2]
[422993319,1779724241000,-518.1,0.00014799,2]
[422993306,1779724241000,-653.41164228,0.000147,2]
[422993303,1779724241000,-1680.0,0.00014689,2]
[422993308,1779724241000,-4448.97254163,0.0001472,2]
[422993293,1779724241000,-500.0,0.00014676,2]
[422993291,1779724241000,-500.0,0.00014676,2]
[422993295,1779724241000,-500.0,0.00014676,2]
[422993298,1779724241000,-500.0,0.00014676,2]
[422993296,1779724241000,-500.0,0.00014676,2]
[422993294,1779724241000,-500.0,0.00014676,2]
[422993301,1779724241000,-2500000.0,0.00014677,2]
[422993297,1779724241000,-500.0,0.00014676,2]
[422993299,1779724241000,-500.0,0.00014676,2]
[422993304,1779724241000,-748.0906452,0.00014698,2]
[422993316,1779724241000,-223.16507989,0.0001479,2]
[422993315,1779724241000,-4448.97254163,0.0001478,2]
[422993300,1779724241000,-150.0,0.00014676,2]
[422993305,1779724241000,-789.97225729,0.000147,2]
[422993346,1779724243000,-733.61180991,0.00014856,2]